{"text_format":"1","workbook":"xlsx","n_sheets":9,"sheets":["MoKon Tool_1","MoKon Tool_2","MoKon Tool_3","MoKon Tool_4","ZZ-Matrix","ZO-Matrix","OP-Matrix","PP-Matrix","PH-Matrix"],"not_rendered":{"charts":0,"images":1,"macros":1,"external_links":0,"defined_names":0,"comments":0,"pivot_tables":0},"unopened":[],"bounds":{"document_bytes":16777216,"sheet_cells":100000,"rows_first":2000,"rows_last":500,"rows_between":2000,"halvings":0,"cell_chars":16384,"cell_head_chars":4096},"cells_cut":0,"cells_raw":0,"read":"whole","date_system":"1900"}

{"sheet":"MoKon Tool_1","index":0,"n_rows":23,"n_cols":7,"rows_kept":23,"cut":false,"hidden":false,"merged":[[1,3,1,4]]}
[]
[null,null,"Software-Demonstrator MoKon"]
[]
[null,null,"Festlegung der Fabrikziele",null,"Gewichtung  "]
[]
[null,null,"Logistikkosten",null,null,null,false]
[null,null,"Logistikleistung",null,null,null,false]
[null,null,"Flächenproduktivität",null,null,null,false]
[null,null,"Mitarbeiterproduktivität",null,null,null,false]
[null,null,"Räumliche Veränderungsfähigkeit von Produktionskapazitäten",null,null,null,false]
[null,null,"Technische und Organisatorische  Veränderungsfähigkeit von Produktionskapazitäten",null,null,null,false]
[null,null,"Räumliche Unterstützung der Kommunikation",null,null,null,false]
[null,null,"Organisatorische Unterstützung der Kommunikation",null,null,null,false]
[null,null,"Räumliche Unterstützung der Mitarbeiterorientierung",null,null,null,false]
[null,null,"Ergonomische Arbeitsabläufe",null,null,null,false]
[null,null,"Nachhaltigkeit des Fabrikgebäudes und der Infrastruktur",null,null,null,false]
[null,null,"Räumliche Unterstützung der Nachhaltigkeit",null,null,null,false]
[null,null,"Kompatibilität zur Aufbauorganisation",null,null,null,false]
[null,null,"Kompatibilität zur Mitarbeiterqualifikation",null,null,null,false]
[null,null,"Einheitliche Gestaltung der Arbeitsstation",null,null,null,false]
[null,null,"Nachvollziehbarkeit der Verwendung einzelner Flächenbereiche",null,null,null,false]
[null,null,"Nachvollziehbarkeit von Prozessen und Materialflüssen",null,null,null,false]
[null,null,"Nachvollziehbarkeit von Verantwortlichkeiten",null,null,null,false]

{"sheet":"MoKon Tool_2","index":1,"n_rows":64,"n_cols":7,"rows_kept":64,"cut":false,"hidden":true,"merged":[]}
[]
[null,null,"Software-Demonstrator MoKon"]
[]
[]
[]
[null,null,"Zielsynergien"]
[]
[]
[]
[]
[]
[]
[]
[]
[]
[]
[]
[]
[]
[]
[]
[]
[]
[]
[null,null,"Zielkonflikte"]
[]
[]
[]
[]
[]
[]
[]
[]
[]
[]
[]
[]
[]
[]
[]
[]
[]
[]
[]
[]
[]
[null,null,"Fabrikobjekte"]
[null,null,null,null,null,null,false]
[null,null,null,null,null,null,false]
[null,null,null,null,null,null,false]
[null,null,null,null,null,null,false]
[null,null,null,null,null,null,false]
[null,null,null,null,null,null,false]
[null,null,null,null,null,null,false]
[null,null,null,null,null,null,false]
[null,null,null,null,null,null,false]
[null,null,null,null,null,null,false]
[null,null,null,null,null,null,false]
[null,null,null,null,null,null,false]
[null,null,null,null,null,null,false]
[null,null,null,null,null,null,false]
[null,null,null,null,null,null,false]
[null,null,null,null,null,null,false]
[null,null,null,null,null,null,false]

{"sheet":"MoKon Tool_3","index":2,"n_rows":5,"n_cols":13,"rows_kept":5,"cut":false,"hidden":true,"merged":[[3,3,3,12]]}
[]
[null,null,"Software-Demonstrator MoKon"]
[]
[null,"Technik","Projektstrukturplan","Handlungssysteme"]
[null,null,null,"Architektur/Gebäudeplanung","Behörden/Gutachter","Fachplanung (bspw. IT, TGA)","Finanzplanung","Logistikplanung","Personalplanung","Produktentwicklung","Prozessplanung","Technologieentwicklung","Unternehmensplanung"]

{"sheet":"MoKon Tool_4","index":3,"n_rows":68,"n_cols":55,"rows_kept":68,"cut":false,"hidden":true,"merged":[[5,35,5,44],[5,45,5,54],[4,3,4,5],[3,3,3,32],[4,6,4,8],[4,9,4,11],[4,12,4,14],[4,15,4,17],[4,18,4,20],[4,21,4,23],[4,24,4,26],[4,27,4,29],[4,30,4,32]]}
[]
[null,null,"Software-Demonstrator MoKon"]
[]
[null,null,"Aufwandsabschätzung\n[Tage]","Handlungssysteme"]
[null,null,null,"Architektur/Gebäudeplanung",null,null,"Behörden/Gutachter",null,null,"Fachplanung \n(bspw. IT, TGA)",null,null,"Finanzplanung",null,null,"Logistikplanung",null,null,"Personalplanung",null,null,"Produktentwicklung",null,null,"Prozessplanung",null,null,"Technologieentwicklung",null,null,"Unternehmensplanung"]
[null,null,null,"optimistisch","pessemistisch","realistisch","optimistisch","pessemistisch","realistisch","optimistisch","pessemistisch","realistisch","optimistisch","pessemistisch","realistisch","optimistisch","pessemistisch","realistisch","optimistisch","pessemistisch","realistisch","optimistisch","pessemistisch","realistisch","optimistisch","pessemistisch","realistisch","optimistisch","pessemistisch","realistisch","optimistisch","pessemistisch","realistisch",null,null,"Erwartungswerte",null,null,null,null,null,null,null,null,null,"Standardabweichungen"]
[null,null,null,null,null,{"$f":"IF('MoKon Tool_3'!D6=1,'MoKon Tool_3'!D6,\"\")","v":""},null,null,{"$f":"IF('MoKon Tool_3'!E6=1,'MoKon Tool_3'!E6,\"\")","v":""},null,null,{"$f":"IF('MoKon Tool_3'!F6=1,'MoKon Tool_3'!F6,\"\")","v":""},null,null,{"$f":"IF('MoKon Tool_3'!G6=1,'MoKon Tool_3'!G6,\"\")","v":""},null,null,{"$f":"IF('MoKon Tool_3'!H6=1,'MoKon Tool_3'!H6,\"\")","v":""},null,null,{"$f":"IF('MoKon Tool_3'!I6=1,'MoKon Tool_3'!I6,\"\")","v":""},null,null,{"$f":"IF('MoKon Tool_3'!J6=1,'MoKon Tool_3'!J6,\"\")","v":""},null,null,{"$f":"IF('MoKon Tool_3'!K6=1,'MoKon Tool_3'!K6,\"\")","v":""},null,null,{"$f":"IF('MoKon Tool_3'!L6=1,'MoKon Tool_3'!L6,\"\")","v":""},null,null,{"$f":"IF('MoKon Tool_3'!M6=1,'MoKon Tool_3'!M6,\"\")","v":""},null,null,{"$f":"IFERROR((D7+4*F7+E7)/6,0)","v":0},{"$f":"IFERROR((G7+4*I7+H7)/6,0)","v":0},{"$f":"IFERROR((J7+4*L7+K7)/6,0)","v":0},{"$f":"IFERROR((M7+4*O7+N7)/6,0)","v":0},{"$f":"IFERROR((P7+4*R7+Q7)/6,0)","v":0},{"$f":"IFERROR((S7+4*U7+T7)/6,0)","v":0},{"$f":"IFERROR((V7+4*X7+W7)/6,0)","v":0},{"$f":"IFERROR((Y7+4*AA7+Z7)/6,0)","v":0},{"$f":"IFERROR((AB7+4*AD7+AC7)/6,0)","v":0},{"$f":"IFERROR((AE7+4*AG7+AF7)/6,0)","v":0},{"$f":"(E7-D7)/6","v":0},{"$f":"(H7-G7)/6","v":0},{"$f":"(K7-J7)/6","v":0},{"$f":"(N7-M7)/6","v":0},{"$f":"(Q7-P7)/6","v":0},{"$f":"(T7-S7)/6","v":0},{"$f":"(W7-V7)/6","v":0},{"$f":"(Z7-Y7)/6","v":0},{"$f":"(AC7-AB7)/6","v":0},{"$f":"(AF7-AE7)/6","v":0}]
[null,null,null,null,null,{"$f":"IF('MoKon Tool_3'!D7=1,'MoKon Tool_3'!D7,\"\")","v":""},null,null,{"$f":"IF('MoKon Tool_3'!E7=1,'MoKon Tool_3'!E7,\"\")","v":""},null,null,{"$f":"IF('MoKon Tool_3'!F7=1,'MoKon Tool_3'!F7,\"\")","v":""},null,null,{"$f":"IF('MoKon Tool_3'!G7=1,'MoKon Tool_3'!G7,\"\")","v":""},null,null,{"$f":"IF('MoKon Tool_3'!H7=1,'MoKon Tool_3'!H7,\"\")","v":""},null,null,{"$f":"IF('MoKon Tool_3'!I7=1,'MoKon Tool_3'!I7,\"\")","v":""},null,null,{"$f":"IF('MoKon Tool_3'!J7=1,'MoKon Tool_3'!J7,\"\")","v":""},null,null,{"$f":"IF('MoKon Tool_3'!K7=1,'MoKon Tool_3'!K7,\"\")","v":""},null,null,{"$f":"IF('MoKon Tool_3'!L7=1,'MoKon Tool_3'!L7,\"\")","v":""},null,null,{"$f":"IF('MoKon Tool_3'!M7=1,'MoKon Tool_3'!M7,\"\")","v":""},null,null,{"$f":"IFERROR((D8+4*F8+E8)/6,0)","v":0},{"$f":"IFERROR((G8+4*I8+H8)/6,0)","v":0},{"$f":"IFERROR((J8+4*L8+K8)/6,0)","v":0},{"$f":"IFERROR((M8+4*O8+N8)/6,0)","v":0},{"$f":"IFERROR((P8+4*R8+Q8)/6,0)","v":0},{"$f":"IFERROR((S8+4*U8+T8)/6,0)","v":0},{"$f":"IFERROR((V8+4*X8+W8)/6,0)","v":0},{"$f":"IFERROR((Y8+4*AA8+Z8)/6,0)","v":0},{"$f":"IFERROR((AB8+4*AD8+AC8)/6,0)","v":0},{"$f":"IFERROR((AE8+4*AG8+AF8)/6,0)","v":0},{"$f":"(E8-D8)/6","v":0},{"$f":"(H8-G8)/6","v":0},{"$f":"(K8-J8)/6","v":0},{"$f":"(N8-M8)/6","v":0},{"$f":"(Q8-P8)/6","v":0},{"$f":"(T8-S8)/6","v":0},{"$f":"(W8-V8)/6","v":0},{"$f":"(Z8-Y8)/6","v":0},{"$f":"(AC8-AB8)/6","v":0},{"$f":"(AF8-AE8)/6","v":0}]
[null,null,null,null,null,{"$f":"IF('MoKon Tool_3'!D8=1,'MoKon Tool_3'!D8,\"\")","v":""},null,null,{"$f":"IF('MoKon Tool_3'!E8=1,'MoKon Tool_3'!E8,\"\")","v":""},null,null,{"$f":"IF('MoKon Tool_3'!F8=1,'MoKon Tool_3'!F8,\"\")","v":""},null,null,{"$f":"IF('MoKon Tool_3'!G8=1,'MoKon Tool_3'!G8,\"\")","v":""},null,null,{"$f":"IF('MoKon Tool_3'!H8=1,'MoKon Tool_3'!H8,\"\")","v":""},null,null,{"$f":"IF('MoKon Tool_3'!I8=1,'MoKon Tool_3'!I8,\"\")","v":""},null,null,{"$f":"IF('MoKon Tool_3'!J8=1,'MoKon Tool_3'!J8,\"\")","v":""},null,null,{"$f":"IF('MoKon Tool_3'!K8=1,'MoKon Tool_3'!K8,\"\")","v":""},null,null,{"$f":"IF('MoKon Tool_3'!L8=1,'MoKon Tool_3'!L8,\"\")","v":""},null,null,{"$f":"IF('MoKon Tool_3'!M8=1,'MoKon Tool_3'!M8,\"\")","v":""},null,null,0,0,0,0,0,0,0,0,0,0,0,0,0,0,0,0,0,0,0,0]
[null,null,null,null,null,{"$f":"IF('MoKon Tool_3'!D9=1,'MoKon Tool_3'!D9,\"\")","v":""},null,null,{"$f":"IF('MoKon Tool_3'!E9=1,'MoKon Tool_3'!E9,\"\")","v":""},null,null,{"$f":"IF('MoKon Tool_3'!F9=1,'MoKon Tool_3'!F9,\"\")","v":""},null,null,{"$f":"IF('MoKon Tool_3'!G9=1,'MoKon Tool_3'!G9,\"\")","v":""},null,null,{"$f":"IF('MoKon Tool_3'!H9=1,'MoKon Tool_3'!H9,\"\")","v":""},null,null,{"$f":"IF('MoKon Tool_3'!I9=1,'MoKon Tool_3'!I9,\"\")","v":""},null,null,{"$f":"IF('MoKon Tool_3'!J9=1,'MoKon Tool_3'!J9,\"\")","v":""},null,null,{"$f":"IF('MoKon Tool_3'!K9=1,'MoKon Tool_3'!K9,\"\")","v":""},null,null,{"$f":"IF('MoKon Tool_3'!L9=1,'MoKon Tool_3'!L9,\"\")","v":""},null,null,{"$f":"IF('MoKon Tool_3'!M9=1,'MoKon Tool_3'!M9,\"\")","v":""},null,null,0,0,0,0,0,0,0,0,0,0,0,0,0,0,0,0,0,0,0,0]
[null,null,null,null,null,{"$f":"IF('MoKon Tool_3'!D10=1,'MoKon Tool_3'!D10,\"\")","v":""},null,null,{"$f":"IF('MoKon Tool_3'!E10=1,'MoKon Tool_3'!E10,\"\")","v":""},null,null,{"$f":"IF('MoKon Tool_3'!F10=1,'MoKon Tool_3'!F10,\"\")","v":""},null,null,{"$f":"IF('MoKon Tool_3'!G10=1,'MoKon Tool_3'!G10,\"\")","v":""},null,null,{"$f":"IF('MoKon Tool_3'!H10=1,'MoKon Tool_3'!H10,\"\")","v":""},null,null,{"$f":"IF('MoKon Tool_3'!I10=1,'MoKon Tool_3'!I10,\"\")","v":""},null,null,{"$f":"IF('MoKon Tool_3'!J10=1,'MoKon Tool_3'!J10,\"\")","v":""},null,null,{"$f":"IF('MoKon Tool_3'!K10=1,'MoKon Tool_3'!K10,\"\")","v":""},null,null,{"$f":"IF('MoKon Tool_3'!L10=1,'MoKon Tool_3'!L10,\"\")","v":""},null,null,{"$f":"IF('MoKon Tool_3'!M10=1,'MoKon Tool_3'!M10,\"\")","v":""},null,null,0,0,0,0,0,0,0,0,0,0,{"$f":"(E11-D11)/6","v":0},0,0,0,0,0,0,0,0,0]
[null,null,null,null,null,{"$f":"IF('MoKon Tool_3'!D11=1,'MoKon Tool_3'!D11,\"\")","v":""},null,null,{"$f":"IF('MoKon Tool_3'!E11=1,'MoKon Tool_3'!E11,\"\")","v":""},null,null,{"$f":"IF('MoKon Tool_3'!F11=1,'MoKon Tool_3'!F11,\"\")","v":""},null,null,{"$f":"IF('MoKon Tool_3'!G11=1,'MoKon Tool_3'!G11,\"\")","v":""},null,null,{"$f":"IF('MoKon Tool_3'!H11=1,'MoKon Tool_3'!H11,\"\")","v":""},null,null,{"$f":"IF('MoKon Tool_3'!I11=1,'MoKon Tool_3'!I11,\"\")","v":""},null,null,{"$f":"IF('MoKon Tool_3'!J11=1,'MoKon Tool_3'!J11,\"\")","v":""},null,null,{"$f":"IF('MoKon Tool_3'!K11=1,'MoKon Tool_3'!K11,\"\")","v":""},null,null,{"$f":"IF('MoKon Tool_3'!L11=1,'MoKon Tool_3'!L11,\"\")","v":""},null,null,{"$f":"IF('MoKon Tool_3'!M11=1,'MoKon Tool_3'!M11,\"\")","v":""},null,null,0,0,0,0,0,0,0,0,0,0,0,0,0,0,0,0,0,0,0,0]
[null,null,null,null,null,{"$f":"IF('MoKon Tool_3'!D12=1,'MoKon Tool_3'!D12,\"\")","v":""},null,null,{"$f":"IF('MoKon Tool_3'!E12=1,'MoKon Tool_3'!E12,\"\")","v":""},null,null,{"$f":"IF('MoKon Tool_3'!F12=1,'MoKon Tool_3'!F12,\"\")","v":""},null,null,{"$f":"IF('MoKon Tool_3'!G12=1,'MoKon Tool_3'!G12,\"\")","v":""},null,null,{"$f":"IF('MoKon Tool_3'!H12=1,'MoKon Tool_3'!H12,\"\")","v":""},null,null,{"$f":"IF('MoKon Tool_3'!I12=1,'MoKon Tool_3'!I12,\"\")","v":""},null,null,{"$f":"IF('MoKon Tool_3'!J12=1,'MoKon Tool_3'!J12,\"\")","v":""},null,null,{"$f":"IF('MoKon Tool_3'!K12=1,'MoKon Tool_3'!K12,\"\")","v":""},null,null,{"$f":"IF('MoKon Tool_3'!L12=1,'MoKon Tool_3'!L12,\"\")","v":""},null,null,{"$f":"IF('MoKon Tool_3'!M12=1,'MoKon Tool_3'!M12,\"\")","v":""},null,null,0,0,0,0,0,0,0,0,0,0,0,0,0,0,0,0,0,0,0,0]
[null,null,null,null,null,{"$f":"IF('MoKon Tool_3'!D13=1,'MoKon Tool_3'!D13,\"\")","v":""},null,null,{"$f":"IF('MoKon Tool_3'!E13=1,'MoKon Tool_3'!E13,\"\")","v":""},null,null,{"$f":"IF('MoKon Tool_3'!F13=1,'MoKon Tool_3'!F13,\"\")","v":""},null,null,{"$f":"IF('MoKon Tool_3'!G13=1,'MoKon Tool_3'!G13,\"\")","v":""},null,null,{"$f":"IF('MoKon Tool_3'!H13=1,'MoKon Tool_3'!H13,\"\")","v":""},null,null,{"$f":"IF('MoKon Tool_3'!I13=1,'MoKon Tool_3'!I13,\"\")","v":""},null,null,{"$f":"IF('MoKon Tool_3'!J13=1,'MoKon Tool_3'!J13,\"\")","v":""},null,null,{"$f":"IF('MoKon Tool_3'!K13=1,'MoKon Tool_3'!K13,\"\")","v":""},null,null,{"$f":"IF('MoKon Tool_3'!L13=1,'MoKon Tool_3'!L13,\"\")","v":""},null,null,{"$f":"IF('MoKon Tool_3'!M13=1,'MoKon Tool_3'!M13,\"\")","v":""},null,null,0,0,0,0,0,0,0,0,0,0,0,0,0,0,0,0,0,0,0,0]
[null,null,null,null,null,{"$f":"IF('MoKon Tool_3'!D14=1,'MoKon Tool_3'!D14,\"\")","v":""},null,null,{"$f":"IF('MoKon Tool_3'!E14=1,'MoKon Tool_3'!E14,\"\")","v":""},null,null,{"$f":"IF('MoKon Tool_3'!F14=1,'MoKon Tool_3'!F14,\"\")","v":""},null,null,{"$f":"IF('MoKon Tool_3'!G14=1,'MoKon Tool_3'!G14,\"\")","v":""},null,null,{"$f":"IF('MoKon Tool_3'!H14=1,'MoKon Tool_3'!H14,\"\")","v":""},null,null,{"$f":"IF('MoKon Tool_3'!I14=1,'MoKon Tool_3'!I14,\"\")","v":""},null,null,{"$f":"IF('MoKon Tool_3'!J14=1,'MoKon Tool_3'!J14,\"\")","v":""},null,null,{"$f":"IF('MoKon Tool_3'!K14=1,'MoKon Tool_3'!K14,\"\")","v":""},null,null,{"$f":"IF('MoKon Tool_3'!L14=1,'MoKon Tool_3'!L14,\"\")","v":""},null,null,{"$f":"IF('MoKon Tool_3'!M14=1,'MoKon Tool_3'!M14,\"\")","v":""},null,null,0,0,0,0,0,0,0,0,0,0,0,0,0,0,0,0,0,0,0,0]
[null,null,null,null,null,{"$f":"IF('MoKon Tool_3'!D15=1,'MoKon Tool_3'!D15,\"\")","v":""},null,null,{"$f":"IF('MoKon Tool_3'!E15=1,'MoKon Tool_3'!E15,\"\")","v":""},null,null,{"$f":"IF('MoKon Tool_3'!F15=1,'MoKon Tool_3'!F15,\"\")","v":""},null,null,{"$f":"IF('MoKon Tool_3'!G15=1,'MoKon Tool_3'!G15,\"\")","v":""},null,null,{"$f":"IF('MoKon Tool_3'!H15=1,'MoKon Tool_3'!H15,\"\")","v":""},null,null,{"$f":"IF('MoKon Tool_3'!I15=1,'MoKon Tool_3'!I15,\"\")","v":""},null,null,{"$f":"IF('MoKon Tool_3'!J15=1,'MoKon Tool_3'!J15,\"\")","v":""},null,null,{"$f":"IF('MoKon Tool_3'!K15=1,'MoKon Tool_3'!K15,\"\")","v":""},null,null,{"$f":"IF('MoKon Tool_3'!L15=1,'MoKon Tool_3'!L15,\"\")","v":""},null,null,{"$f":"IF('MoKon Tool_3'!M15=1,'MoKon Tool_3'!M15,\"\")","v":""},null,null,0,0,0,0,0,0,0,0,0,0,0,0,0,0,0,0,0,0,0,0]
[null,null,null,null,null,{"$f":"IF('MoKon Tool_3'!D16=1,'MoKon Tool_3'!D16,\"\")","v":""},null,null,{"$f":"IF('MoKon Tool_3'!E16=1,'MoKon Tool_3'!E16,\"\")","v":""},null,null,{"$f":"IF('MoKon Tool_3'!F16=1,'MoKon Tool_3'!F16,\"\")","v":""},null,null,{"$f":"IF('MoKon Tool_3'!G16=1,'MoKon Tool_3'!G16,\"\")","v":""},null,null,{"$f":"IF('MoKon Tool_3'!H16=1,'MoKon Tool_3'!H16,\"\")","v":""},null,null,{"$f":"IF('MoKon Tool_3'!I16=1,'MoKon Tool_3'!I16,\"\")","v":""},null,null,{"$f":"IF('MoKon Tool_3'!J16=1,'MoKon Tool_3'!J16,\"\")","v":""},null,null,{"$f":"IF('MoKon Tool_3'!K16=1,'MoKon Tool_3'!K16,\"\")","v":""},null,null,{"$f":"IF('MoKon Tool_3'!L16=1,'MoKon Tool_3'!L16,\"\")","v":""},null,null,{"$f":"IF('MoKon Tool_3'!M16=1,'MoKon Tool_3'!M16,\"\")","v":""},null,null,0,0,0,0,0,0,0,0,0,0,0,0,0,0,0,0,0,0,0,0]
[null,null,{"$f":"IF('MoKon Tool_3'!C17<>0,'MoKon Tool_3'!C17,\"\")","v":""},null,null,{"$f":"IF('MoKon Tool_3'!D17=1,'MoKon Tool_3'!D17,\"\")","v":""},null,null,{"$f":"IF('MoKon Tool_3'!E17=1,'MoKon Tool_3'!E17,\"\")","v":""},null,null,{"$f":"IF('MoKon Tool_3'!F17=1,'MoKon Tool_3'!F17,\"\")","v":""},null,null,{"$f":"IF('MoKon Tool_3'!G17=1,'MoKon Tool_3'!G17,\"\")","v":""},null,null,{"$f":"IF('MoKon Tool_3'!H17=1,'MoKon Tool_3'!H17,\"\")","v":""},null,null,{"$f":"IF('MoKon Tool_3'!I17=1,'MoKon Tool_3'!I17,\"\")","v":""},null,null,{"$f":"IF('MoKon Tool_3'!J17=1,'MoKon Tool_3'!J17,\"\")","v":""},null,null,{"$f":"IF('MoKon Tool_3'!K17=1,'MoKon Tool_3'!K17,\"\")","v":""},null,null,{"$f":"IF('MoKon Tool_3'!L17=1,'MoKon Tool_3'!L17,\"\")","v":""},null,null,{"$f":"IF('MoKon Tool_3'!M17=1,'MoKon Tool_3'!M17,\"\")","v":""},null,null,0,0,0,0,0,0,0,0,0,0,0,0,0,0,0,0,0,0,0,0]
[null,null,{"$f":"IF('MoKon Tool_3'!C18<>0,'MoKon Tool_3'!C18,\"\")","v":""},null,null,{"$f":"IF('MoKon Tool_3'!D18=1,'MoKon Tool_3'!D18,\"\")","v":""},null,null,{"$f":"IF('MoKon Tool_3'!E18=1,'MoKon Tool_3'!E18,\"\")","v":""},null,null,{"$f":"IF('MoKon Tool_3'!F18=1,'MoKon Tool_3'!F18,\"\")","v":""},null,null,{"$f":"IF('MoKon Tool_3'!G18=1,'MoKon Tool_3'!G18,\"\")","v":""},null,null,{"$f":"IF('MoKon Tool_3'!H18=1,'MoKon Tool_3'!H18,\"\")","v":""},null,null,{"$f":"IF('MoKon Tool_3'!I18=1,'MoKon Tool_3'!I18,\"\")","v":""},null,null,{"$f":"IF('MoKon Tool_3'!J18=1,'MoKon Tool_3'!J18,\"\")","v":""},null,null,{"$f":"IF('MoKon Tool_3'!K18=1,'MoKon Tool_3'!K18,\"\")","v":""},null,null,{"$f":"IF('MoKon Tool_3'!L18=1,'MoKon Tool_3'!L18,\"\")","v":""},null,null,{"$f":"IF('MoKon Tool_3'!M18=1,'MoKon Tool_3'!M18,\"\")","v":""},null,null,0,{"$f":"IFERROR((G19+4*I19+H19)/6,0)","v":0},0,0,0,0,0,0,0,0,0,0,0,0,0,0,0,0,0,0]
[null,null,{"$f":"IF('MoKon Tool_3'!C19<>0,'MoKon Tool_3'!C19,\"\")","v":""},null,null,{"$f":"IF('MoKon Tool_3'!D19=1,'MoKon Tool_3'!D19,\"\")","v":""},null,null,{"$f":"IF('MoKon Tool_3'!E19=1,'MoKon Tool_3'!E19,\"\")","v":""},null,null,{"$f":"IF('MoKon Tool_3'!F19=1,'MoKon Tool_3'!F19,\"\")","v":""},null,null,{"$f":"IF('MoKon Tool_3'!G19=1,'MoKon Tool_3'!G19,\"\")","v":""},null,null,{"$f":"IF('MoKon Tool_3'!H19=1,'MoKon Tool_3'!H19,\"\")","v":""},null,null,{"$f":"IF('MoKon Tool_3'!I19=1,'MoKon Tool_3'!I19,\"\")","v":""},null,null,{"$f":"IF('MoKon Tool_3'!J19=1,'MoKon Tool_3'!J19,\"\")","v":""},null,null,{"$f":"IF('MoKon Tool_3'!K19=1,'MoKon Tool_3'!K19,\"\")","v":""},null,null,{"$f":"IF('MoKon Tool_3'!L19=1,'MoKon Tool_3'!L19,\"\")","v":""},null,null,{"$f":"IF('MoKon Tool_3'!M19=1,'MoKon Tool_3'!M19,\"\")","v":""},null,null,0,0,0,0,0,0,0,0,0,0,0,0,0,0,0,0,0,0,0,0]
[null,null,{"$f":"IF('MoKon Tool_3'!C20<>0,'MoKon Tool_3'!C20,\"\")","v":""},null,null,{"$f":"IF('MoKon Tool_3'!D20=1,'MoKon Tool_3'!D20,\"\")","v":""},null,null,{"$f":"IF('MoKon Tool_3'!E20=1,'MoKon Tool_3'!E20,\"\")","v":""},null,null,{"$f":"IF('MoKon Tool_3'!F20=1,'MoKon Tool_3'!F20,\"\")","v":""},null,null,{"$f":"IF('MoKon Tool_3'!G20=1,'MoKon Tool_3'!G20,\"\")","v":""},null,null,{"$f":"IF('MoKon Tool_3'!H20=1,'MoKon Tool_3'!H20,\"\")","v":""},null,null,{"$f":"IF('MoKon Tool_3'!I20=1,'MoKon Tool_3'!I20,\"\")","v":""},null,null,{"$f":"IF('MoKon Tool_3'!J20=1,'MoKon Tool_3'!J20,\"\")","v":""},null,null,{"$f":"IF('MoKon Tool_3'!K20=1,'MoKon Tool_3'!K20,\"\")","v":""},null,null,{"$f":"IF('MoKon Tool_3'!L20=1,'MoKon Tool_3'!L20,\"\")","v":""},null,null,{"$f":"IF('MoKon Tool_3'!M20=1,'MoKon Tool_3'!M20,\"\")","v":""},null,null,0,0,0,0,0,0,0,0,0,0,0,0,0,0,0,0,0,0,0,0]
[null,null,{"$f":"IF('MoKon Tool_3'!C21<>0,'MoKon Tool_3'!C21,\"\")","v":""},null,null,{"$f":"IF('MoKon Tool_3'!D21=1,'MoKon Tool_3'!D21,\"\")","v":""},null,null,{"$f":"IF('MoKon Tool_3'!E21=1,'MoKon Tool_3'!E21,\"\")","v":""},null,null,{"$f":"IF('MoKon Tool_3'!F21=1,'MoKon Tool_3'!F21,\"\")","v":""},null,null,{"$f":"IF('MoKon Tool_3'!G21=1,'MoKon Tool_3'!G21,\"\")","v":""},null,null,{"$f":"IF('MoKon Tool_3'!H21=1,'MoKon Tool_3'!H21,\"\")","v":""},null,null,{"$f":"IF('MoKon Tool_3'!I21=1,'MoKon Tool_3'!I21,\"\")","v":""},null,null,{"$f":"IF('MoKon Tool_3'!J21=1,'MoKon Tool_3'!J21,\"\")","v":""},null,null,{"$f":"IF('MoKon Tool_3'!K21=1,'MoKon Tool_3'!K21,\"\")","v":""},null,null,{"$f":"IF('MoKon Tool_3'!L21=1,'MoKon Tool_3'!L21,\"\")","v":""},null,null,{"$f":"IF('MoKon Tool_3'!M21=1,'MoKon Tool_3'!M21,\"\")","v":""},null,null,0,0,0,0,0,0,0,0,0,0,0,0,0,0,0,0,0,0,0,0]
[null,null,{"$f":"IF('MoKon Tool_3'!C22<>0,'MoKon Tool_3'!C22,\"\")","v":""},null,null,{"$f":"IF('MoKon Tool_3'!D22=1,'MoKon Tool_3'!D22,\"\")","v":""},null,null,{"$f":"IF('MoKon Tool_3'!E22=1,'MoKon Tool_3'!E22,\"\")","v":""},null,null,{"$f":"IF('MoKon Tool_3'!F22=1,'MoKon Tool_3'!F22,\"\")","v":""},null,null,{"$f":"IF('MoKon Tool_3'!G22=1,'MoKon Tool_3'!G22,\"\")","v":""},null,null,{"$f":"IF('MoKon Tool_3'!H22=1,'MoKon Tool_3'!H22,\"\")","v":""},null,null,{"$f":"IF('MoKon Tool_3'!I22=1,'MoKon Tool_3'!I22,\"\")","v":""},null,null,{"$f":"IF('MoKon Tool_3'!J22=1,'MoKon Tool_3'!J22,\"\")","v":""},null,null,{"$f":"IF('MoKon Tool_3'!K22=1,'MoKon Tool_3'!K22,\"\")","v":""},null,null,{"$f":"IF('MoKon Tool_3'!L22=1,'MoKon Tool_3'!L22,\"\")","v":""},null,null,{"$f":"IF('MoKon Tool_3'!M22=1,'MoKon Tool_3'!M22,\"\")","v":""},null,null,0,0,0,0,0,0,0,0,0,0,0,0,0,0,0,0,0,0,0,0]
[null,null,{"$f":"IF('MoKon Tool_3'!C23<>0,'MoKon Tool_3'!C23,\"\")","v":""},null,null,{"$f":"IF('MoKon Tool_3'!D23=1,'MoKon Tool_3'!D23,\"\")","v":""},null,null,{"$f":"IF('MoKon Tool_3'!E23=1,'MoKon Tool_3'!E23,\"\")","v":""},null,null,{"$f":"IF('MoKon Tool_3'!F23=1,'MoKon Tool_3'!F23,\"\")","v":""},null,null,{"$f":"IF('MoKon Tool_3'!G23=1,'MoKon Tool_3'!G23,\"\")","v":""},null,null,{"$f":"IF('MoKon Tool_3'!H23=1,'MoKon Tool_3'!H23,\"\")","v":""},null,null,{"$f":"IF('MoKon Tool_3'!I23=1,'MoKon Tool_3'!I23,\"\")","v":""},null,null,{"$f":"IF('MoKon Tool_3'!J23=1,'MoKon Tool_3'!J23,\"\")","v":""},null,null,{"$f":"IF('MoKon Tool_3'!K23=1,'MoKon Tool_3'!K23,\"\")","v":""},null,null,{"$f":"IF('MoKon Tool_3'!L23=1,'MoKon Tool_3'!L23,\"\")","v":""},null,null,{"$f":"IF('MoKon Tool_3'!M23=1,'MoKon Tool_3'!M23,\"\")","v":""},null,null,0,0,0,0,0,0,0,0,0,0,0,0,0,0,0,0,0,0,0,0]
[null,null,{"$f":"IF('MoKon Tool_3'!C24<>0,'MoKon Tool_3'!C24,\"\")","v":""},null,null,{"$f":"IF('MoKon Tool_3'!D24=1,'MoKon Tool_3'!D24,\"\")","v":""},null,null,{"$f":"IF('MoKon Tool_3'!E24=1,'MoKon Tool_3'!E24,\"\")","v":""},null,null,{"$f":"IF('MoKon Tool_3'!F24=1,'MoKon Tool_3'!F24,\"\")","v":""},null,null,{"$f":"IF('MoKon Tool_3'!G24=1,'MoKon Tool_3'!G24,\"\")","v":""},null,null,{"$f":"IF('MoKon Tool_3'!H24=1,'MoKon Tool_3'!H24,\"\")","v":""},null,null,{"$f":"IF('MoKon Tool_3'!I24=1,'MoKon Tool_3'!I24,\"\")","v":""},null,null,{"$f":"IF('MoKon Tool_3'!J24=1,'MoKon Tool_3'!J24,\"\")","v":""},null,null,{"$f":"IF('MoKon Tool_3'!K24=1,'MoKon Tool_3'!K24,\"\")","v":""},null,null,{"$f":"IF('MoKon Tool_3'!L24=1,'MoKon Tool_3'!L24,\"\")","v":""},null,null,{"$f":"IF('MoKon Tool_3'!M24=1,'MoKon Tool_3'!M24,\"\")","v":""},null,null,0,0,0,0,0,0,0,0,0,0,0,0,0,0,0,0,0,0,0,0]
[null,null,{"$f":"IF('MoKon Tool_3'!C25<>0,'MoKon Tool_3'!C25,\"\")","v":""},null,null,{"$f":"IF('MoKon Tool_3'!D25=1,'MoKon Tool_3'!D25,\"\")","v":""},null,null,{"$f":"IF('MoKon Tool_3'!E25=1,'MoKon Tool_3'!E25,\"\")","v":""},null,null,{"$f":"IF('MoKon Tool_3'!F25=1,'MoKon Tool_3'!F25,\"\")","v":""},null,null,{"$f":"IF('MoKon Tool_3'!G25=1,'MoKon Tool_3'!G25,\"\")","v":""},null,null,{"$f":"IF('MoKon Tool_3'!H25=1,'MoKon Tool_3'!H25,\"\")","v":""},null,null,{"$f":"IF('MoKon Tool_3'!I25=1,'MoKon Tool_3'!I25,\"\")","v":""},null,null,{"$f":"IF('MoKon Tool_3'!J25=1,'MoKon Tool_3'!J25,\"\")","v":""},null,null,{"$f":"IF('MoKon Tool_3'!K25=1,'MoKon Tool_3'!K25,\"\")","v":""},null,null,{"$f":"IF('MoKon Tool_3'!L25=1,'MoKon Tool_3'!L25,\"\")","v":""},null,null,{"$f":"IF('MoKon Tool_3'!M25=1,'MoKon Tool_3'!M25,\"\")","v":""},null,null,0,0,0,0,0,0,0,0,0,0,0,0,0,0,0,0,0,0,0,0]
[null,null,{"$f":"IF('MoKon Tool_3'!C26<>0,'MoKon Tool_3'!C26,\"\")","v":""},null,null,{"$f":"IF('MoKon Tool_3'!D26=1,'MoKon Tool_3'!D26,\"\")","v":""},null,null,{"$f":"IF('MoKon Tool_3'!E26=1,'MoKon Tool_3'!E26,\"\")","v":""},null,null,{"$f":"IF('MoKon Tool_3'!F26=1,'MoKon Tool_3'!F26,\"\")","v":""},null,null,{"$f":"IF('MoKon Tool_3'!G26=1,'MoKon Tool_3'!G26,\"\")","v":""},null,null,{"$f":"IF('MoKon Tool_3'!H26=1,'MoKon Tool_3'!H26,\"\")","v":""},null,null,{"$f":"IF('MoKon Tool_3'!I26=1,'MoKon Tool_3'!I26,\"\")","v":""},null,null,{"$f":"IF('MoKon Tool_3'!J26=1,'MoKon Tool_3'!J26,\"\")","v":""},null,null,{"$f":"IF('MoKon Tool_3'!K26=1,'MoKon Tool_3'!K26,\"\")","v":""},null,null,{"$f":"IF('MoKon Tool_3'!L26=1,'MoKon Tool_3'!L26,\"\")","v":""},null,null,{"$f":"IF('MoKon Tool_3'!M26=1,'MoKon Tool_3'!M26,\"\")","v":""},null,null,0,0,0,0,0,0,0,0,0,0,0,0,0,0,0,0,0,0,0,0]
[null,null,{"$f":"IF('MoKon Tool_3'!C27<>0,'MoKon Tool_3'!C27,\"\")","v":""},null,null,{"$f":"IF('MoKon Tool_3'!D27=1,'MoKon Tool_3'!D27,\"\")","v":""},null,null,{"$f":"IF('MoKon Tool_3'!E27=1,'MoKon Tool_3'!E27,\"\")","v":""},null,null,{"$f":"IF('MoKon Tool_3'!F27=1,'MoKon Tool_3'!F27,\"\")","v":""},null,null,{"$f":"IF('MoKon Tool_3'!G27=1,'MoKon Tool_3'!G27,\"\")","v":""},null,null,{"$f":"IF('MoKon Tool_3'!H27=1,'MoKon Tool_3'!H27,\"\")","v":""},null,null,{"$f":"IF('MoKon Tool_3'!I27=1,'MoKon Tool_3'!I27,\"\")","v":""},null,null,{"$f":"IF('MoKon Tool_3'!J27=1,'MoKon Tool_3'!J27,\"\")","v":""},null,null,{"$f":"IF('MoKon Tool_3'!K27=1,'MoKon Tool_3'!K27,\"\")","v":""},null,null,{"$f":"IF('MoKon Tool_3'!L27=1,'MoKon Tool_3'!L27,\"\")","v":""},null,null,{"$f":"IF('MoKon Tool_3'!M27=1,'MoKon Tool_3'!M27,\"\")","v":""},null,null,0,0,0,0,0,0,0,0,0,0,0,0,0,0,0,0,0,0,0,0]
[null,null,{"$f":"IF('MoKon Tool_3'!C28<>0,'MoKon Tool_3'!C28,\"\")","v":""},null,null,{"$f":"IF('MoKon Tool_3'!D28=1,'MoKon Tool_3'!D28,\"\")","v":""},null,null,{"$f":"IF('MoKon Tool_3'!E28=1,'MoKon Tool_3'!E28,\"\")","v":""},null,null,{"$f":"IF('MoKon Tool_3'!F28=1,'MoKon Tool_3'!F28,\"\")","v":""},null,null,{"$f":"IF('MoKon Tool_3'!G28=1,'MoKon Tool_3'!G28,\"\")","v":""},null,null,{"$f":"IF('MoKon Tool_3'!H28=1,'MoKon Tool_3'!H28,\"\")","v":""},null,null,{"$f":"IF('MoKon Tool_3'!I28=1,'MoKon Tool_3'!I28,\"\")","v":""},null,null,{"$f":"IF('MoKon Tool_3'!J28=1,'MoKon Tool_3'!J28,\"\")","v":""},null,null,{"$f":"IF('MoKon Tool_3'!K28=1,'MoKon Tool_3'!K28,\"\")","v":""},null,null,{"$f":"IF('MoKon Tool_3'!L28=1,'MoKon Tool_3'!L28,\"\")","v":""},null,null,{"$f":"IF('MoKon Tool_3'!M28=1,'MoKon Tool_3'!M28,\"\")","v":""},null,null,0,0,0,0,0,0,0,0,0,0,0,0,0,0,0,0,0,0,0,0]
[null,null,{"$f":"IF('MoKon Tool_3'!C29<>0,'MoKon Tool_3'!C29,\"\")","v":""},null,null,{"$f":"IF('MoKon Tool_3'!D29=1,'MoKon Tool_3'!D29,\"\")","v":""},null,null,{"$f":"IF('MoKon Tool_3'!E29=1,'MoKon Tool_3'!E29,\"\")","v":""},null,null,{"$f":"IF('MoKon Tool_3'!F29=1,'MoKon Tool_3'!F29,\"\")","v":""},null,null,{"$f":"IF('MoKon Tool_3'!G29=1,'MoKon Tool_3'!G29,\"\")","v":""},null,null,{"$f":"IF('MoKon Tool_3'!H29=1,'MoKon Tool_3'!H29,\"\")","v":""},null,null,{"$f":"IF('MoKon Tool_3'!I29=1,'MoKon Tool_3'!I29,\"\")","v":""},null,null,{"$f":"IF('MoKon Tool_3'!J29=1,'MoKon Tool_3'!J29,\"\")","v":""},null,null,{"$f":"IF('MoKon Tool_3'!K29=1,'MoKon Tool_3'!K29,\"\")","v":""},null,null,{"$f":"IF('MoKon Tool_3'!L29=1,'MoKon Tool_3'!L29,\"\")","v":""},null,null,{"$f":"IF('MoKon Tool_3'!M29=1,'MoKon Tool_3'!M29,\"\")","v":""},null,null,0,0,0,0,0,0,0,0,0,0,0,0,0,0,0,0,0,0,0,0]
[null,null,{"$f":"IF('MoKon Tool_3'!C30<>0,'MoKon Tool_3'!C30,\"\")","v":""},null,null,{"$f":"IF('MoKon Tool_3'!D30=1,'MoKon Tool_3'!D30,\"\")","v":""},null,null,{"$f":"IF('MoKon Tool_3'!E30=1,'MoKon Tool_3'!E30,\"\")","v":""},null,null,{"$f":"IF('MoKon Tool_3'!F30=1,'MoKon Tool_3'!F30,\"\")","v":""},null,null,{"$f":"IF('MoKon Tool_3'!G30=1,'MoKon Tool_3'!G30,\"\")","v":""},null,null,{"$f":"IF('MoKon Tool_3'!H30=1,'MoKon Tool_3'!H30,\"\")","v":""},null,null,{"$f":"IF('MoKon Tool_3'!I30=1,'MoKon Tool_3'!I30,\"\")","v":""},null,null,{"$f":"IF('MoKon Tool_3'!J30=1,'MoKon Tool_3'!J30,\"\")","v":""},null,null,{"$f":"IF('MoKon Tool_3'!K30=1,'MoKon Tool_3'!K30,\"\")","v":""},null,null,{"$f":"IF('MoKon Tool_3'!L30=1,'MoKon Tool_3'!L30,\"\")","v":""},null,null,{"$f":"IF('MoKon Tool_3'!M30=1,'MoKon Tool_3'!M30,\"\")","v":""},null,null,0,0,0,0,0,0,0,0,0,0,0,0,0,0,0,0,0,0,0,0]
[null,null,{"$f":"IF('MoKon Tool_3'!C31<>0,'MoKon Tool_3'!C31,\"\")","v":""},null,null,{"$f":"IF('MoKon Tool_3'!D31=1,'MoKon Tool_3'!D31,\"\")","v":""},null,null,{"$f":"IF('MoKon Tool_3'!E31=1,'MoKon Tool_3'!E31,\"\")","v":""},null,null,{"$f":"IF('MoKon Tool_3'!F31=1,'MoKon Tool_3'!F31,\"\")","v":""},null,null,{"$f":"IF('MoKon Tool_3'!G31=1,'MoKon Tool_3'!G31,\"\")","v":""},null,null,{"$f":"IF('MoKon Tool_3'!H31=1,'MoKon Tool_3'!H31,\"\")","v":""},null,null,{"$f":"IF('MoKon Tool_3'!I31=1,'MoKon Tool_3'!I31,\"\")","v":""},null,null,{"$f":"IF('MoKon Tool_3'!J31=1,'MoKon Tool_3'!J31,\"\")","v":""},null,null,{"$f":"IF('MoKon Tool_3'!K31=1,'MoKon Tool_3'!K31,\"\")","v":""},null,null,{"$f":"IF('MoKon Tool_3'!L31=1,'MoKon Tool_3'!L31,\"\")","v":""},null,null,{"$f":"IF('MoKon Tool_3'!M31=1,'MoKon Tool_3'!M31,\"\")","v":""},null,null,0,0,0,0,0,0,0,0,0,0,0,0,0,0,0,0,0,0,0,0]
[null,null,{"$f":"IF('MoKon Tool_3'!C32<>0,'MoKon Tool_3'!C32,\"\")","v":""},null,null,{"$f":"IF('MoKon Tool_3'!D32=1,'MoKon Tool_3'!D32,\"\")","v":""},null,null,{"$f":"IF('MoKon Tool_3'!E32=1,'MoKon Tool_3'!E32,\"\")","v":""},null,null,{"$f":"IF('MoKon Tool_3'!F32=1,'MoKon Tool_3'!F32,\"\")","v":""},null,null,{"$f":"IF('MoKon Tool_3'!G32=1,'MoKon Tool_3'!G32,\"\")","v":""},null,null,{"$f":"IF('MoKon Tool_3'!H32=1,'MoKon Tool_3'!H32,\"\")","v":""},null,null,{"$f":"IF('MoKon Tool_3'!I32=1,'MoKon Tool_3'!I32,\"\")","v":""},null,null,{"$f":"IF('MoKon Tool_3'!J32=1,'MoKon Tool_3'!J32,\"\")","v":""},null,null,{"$f":"IF('MoKon Tool_3'!K32=1,'MoKon Tool_3'!K32,\"\")","v":""},null,null,{"$f":"IF('MoKon Tool_3'!L32=1,'MoKon Tool_3'!L32,\"\")","v":""},null,null,{"$f":"IF('MoKon Tool_3'!M32=1,'MoKon Tool_3'!M32,\"\")","v":""},null,null,0,0,0,0,0,0,0,0,0,0,0,0,0,0,0,0,0,0,0,0]
[null,null,{"$f":"IF('MoKon Tool_3'!C33<>0,'MoKon Tool_3'!C33,\"\")","v":""},null,null,{"$f":"IF('MoKon Tool_3'!D33=1,'MoKon Tool_3'!D33,\"\")","v":""},null,null,{"$f":"IF('MoKon Tool_3'!E33=1,'MoKon Tool_3'!E33,\"\")","v":""},null,null,{"$f":"IF('MoKon Tool_3'!F33=1,'MoKon Tool_3'!F33,\"\")","v":""},null,null,{"$f":"IF('MoKon Tool_3'!G33=1,'MoKon Tool_3'!G33,\"\")","v":""},null,null,{"$f":"IF('MoKon Tool_3'!H33=1,'MoKon Tool_3'!H33,\"\")","v":""},null,null,{"$f":"IF('MoKon Tool_3'!I33=1,'MoKon Tool_3'!I33,\"\")","v":""},null,null,{"$f":"IF('MoKon Tool_3'!J33=1,'MoKon Tool_3'!J33,\"\")","v":""},null,null,{"$f":"IF('MoKon Tool_3'!K33=1,'MoKon Tool_3'!K33,\"\")","v":""},null,null,{"$f":"IF('MoKon Tool_3'!L33=1,'MoKon Tool_3'!L33,\"\")","v":""},null,null,{"$f":"IF('MoKon Tool_3'!M33=1,'MoKon Tool_3'!M33,\"\")","v":""},null,null,0,0,0,0,0,0,0,0,0,0,0,0,0,0,0,0,0,0,{"$f":"(AC34-AB34)/6","v":0},0]
[null,null,{"$f":"IF('MoKon Tool_3'!C34<>0,'MoKon Tool_3'!C34,\"\")","v":""},null,null,{"$f":"IF('MoKon Tool_3'!D34=1,'MoKon Tool_3'!D34,\"\")","v":""},null,null,{"$f":"IF('MoKon Tool_3'!E34=1,'MoKon Tool_3'!E34,\"\")","v":""},null,null,{"$f":"IF('MoKon Tool_3'!F34=1,'MoKon Tool_3'!F34,\"\")","v":""},null,null,{"$f":"IF('MoKon Tool_3'!G34=1,'MoKon Tool_3'!G34,\"\")","v":""},null,null,{"$f":"IF('MoKon Tool_3'!H34=1,'MoKon Tool_3'!H34,\"\")","v":""},null,null,{"$f":"IF('MoKon Tool_3'!I34=1,'MoKon Tool_3'!I34,\"\")","v":""},null,null,{"$f":"IF('MoKon Tool_3'!J34=1,'MoKon Tool_3'!J34,\"\")","v":""},null,null,{"$f":"IF('MoKon Tool_3'!K34=1,'MoKon Tool_3'!K34,\"\")","v":""},null,null,{"$f":"IF('MoKon Tool_3'!L34=1,'MoKon Tool_3'!L34,\"\")","v":""},null,null,{"$f":"IF('MoKon Tool_3'!M34=1,'MoKon Tool_3'!M34,\"\")","v":""},null,null,0,0,0,0,0,0,0,0,0,0,0,0,0,0,0,0,0,0,0,0]
[null,null,{"$f":"IF('MoKon Tool_3'!C35<>0,'MoKon Tool_3'!C35,\"\")","v":""},null,null,{"$f":"IF('MoKon Tool_3'!D35=1,'MoKon Tool_3'!D35,\"\")","v":""},null,null,{"$f":"IF('MoKon Tool_3'!E35=1,'MoKon Tool_3'!E35,\"\")","v":""},null,null,{"$f":"IF('MoKon Tool_3'!F35=1,'MoKon Tool_3'!F35,\"\")","v":""},null,null,{"$f":"IF('MoKon Tool_3'!G35=1,'MoKon Tool_3'!G35,\"\")","v":""},null,null,{"$f":"IF('MoKon Tool_3'!H35=1,'MoKon Tool_3'!H35,\"\")","v":""},null,null,{"$f":"IF('MoKon Tool_3'!I35=1,'MoKon Tool_3'!I35,\"\")","v":""},null,null,{"$f":"IF('MoKon Tool_3'!J35=1,'MoKon Tool_3'!J35,\"\")","v":""},null,null,{"$f":"IF('MoKon Tool_3'!K35=1,'MoKon Tool_3'!K35,\"\")","v":""},null,null,{"$f":"IF('MoKon Tool_3'!L35=1,'MoKon Tool_3'!L35,\"\")","v":""},null,null,{"$f":"IF('MoKon Tool_3'!M35=1,'MoKon Tool_3'!M35,\"\")","v":""},null,null,0,0,0,0,0,0,0,0,0,0,{"$f":"(E36-D36)/6","v":0},0,0,0,0,0,0,0,0,0]
[]
[null,null,"Erwartungswert gesamt",null,null,null,null,null,null,null,null,null,null,null,null,null,null,null,null,null,null,null,null,null,null,null,null,null,null,null,null,null,null,null,null,null,null,null,null,null,null,null,null,null,null,"Standardabweichungen quadriert"]
[null,null,{"$f":"SUM(AJ7:AS36)","v":0},null,null,null,null,null,null,null,null,null,null,null,null,null,null,null,null,null,null,null,null,null,null,null,null,null,null,null,null,null,null,null,null,null,null,null,null,null,null,null,null,null,null,{"$f":"AT7^2","v":0},{"$f":"AU7^2","v":0},0,0,0,0,0,0,0,0]
[null,null,null,null,null,null,null,null,null,null,null,null,null,null,null,null,null,null,null,null,null,null,null,null,null,null,null,null,null,null,null,null,null,null,null,null,null,null,null,null,null,null,null,null,null,{"$f":"AT8^2","v":0},0,0,0,0,0,0,0,0,0]
[null,null,"Standardabweichung gesamt",null,null,null,null,null,null,null,null,null,null,null,null,null,null,null,null,null,null,null,null,null,null,null,null,null,null,null,null,null,null,null,null,null,null,null,null,null,null,null,null,null,null,{"$f":"AT9^2","v":0},0,0,0,0,0,0,0,0,0]
[null,null,{"$f":"SQRT(SUM(AT39:BC68))","v":0},null,null,null,null,null,null,null,null,null,null,null,null,null,null,null,null,null,null,null,null,null,null,null,null,null,null,null,null,null,null,null,null,null,null,null,null,null,null,null,null,null,null,{"$f":"AT10^2","v":0},0,0,0,0,0,0,0,0,0]
[null,null,null,null,null,null,null,null,null,null,null,null,null,null,null,null,null,null,null,null,null,null,null,null,null,null,null,null,null,null,null,null,null,null,null,null,null,null,null,null,null,null,null,null,null,{"$f":"AT11^2","v":0},0,0,0,0,0,0,0,0,0]
[null,null,null,null,null,null,null,null,null,null,null,null,null,null,null,null,null,null,null,null,null,null,null,null,null,null,null,null,null,null,null,null,null,null,null,null,null,null,null,null,null,null,null,null,null,{"$f":"AT12^2","v":0},0,0,0,0,0,0,0,0,0]
[null,null,null,null,null,null,null,null,null,null,null,null,null,null,null,null,null,null,null,null,null,null,null,null,null,null,null,null,null,null,null,null,null,null,null,null,null,null,null,null,null,null,null,null,null,{"$f":"AT13^2","v":0},0,0,0,0,0,0,0,0,0]
[null,null,null,null,null,null,null,null,null,null,null,null,null,null,null,null,null,null,null,null,null,null,null,null,null,null,null,null,null,null,null,null,null,null,null,null,null,null,null,null,null,null,null,null,null,{"$f":"AT14^2","v":0},0,0,0,0,0,0,0,0,0]
[null,null,null,null,null,null,null,null,null,null,null,null,null,null,null,null,null,null,null,null,null,null,null,null,null,null,null,null,null,null,null,null,null,null,null,null,null,null,null,null,null,null,null,null,null,{"$f":"AT15^2","v":0},0,0,0,0,0,0,0,0,0]
[null,null,null,null,null,null,null,null,null,null,null,null,null,null,null,null,null,null,null,null,null,null,null,null,null,null,null,null,null,null,null,null,null,null,null,null,null,null,null,null,null,null,null,null,null,{"$f":"AT16^2","v":0},0,0,0,0,0,0,0,0,0]
[null,null,null,null,null,null,null,null,null,null,null,null,null,null,null,null,null,null,null,null,null,null,null,null,null,null,null,null,null,null,null,null,null,null,null,null,null,null,null,null,null,null,null,null,null,{"$f":"AT17^2","v":0},0,0,0,0,0,0,0,0,0]
[null,null,null,null,null,null,null,null,null,null,null,null,null,null,null,null,null,null,null,null,null,null,null,null,null,null,null,null,null,null,null,null,null,null,null,null,null,null,null,null,null,null,null,null,null,{"$f":"AT18^2","v":0},0,0,0,0,0,0,0,0,0]
[null,null,null,null,null,null,null,null,null,null,null,null,null,null,null,null,null,null,null,null,null,null,null,null,null,null,null,null,null,null,null,null,null,null,null,null,null,null,null,null,null,null,null,null,null,{"$f":"AT19^2","v":0},0,0,0,0,0,0,0,0,0]
[null,null,null,null,null,null,null,null,null,null,null,null,null,null,null,null,null,null,null,null,null,null,null,null,null,null,null,null,null,null,null,null,null,null,null,null,null,null,null,null,null,null,null,null,null,{"$f":"AT20^2","v":0},0,0,0,0,0,0,0,0,0]
[null,null,null,null,null,null,null,null,null,null,null,null,null,null,null,null,null,null,null,null,null,null,null,null,null,null,null,null,null,null,null,null,null,null,null,null,null,null,null,null,null,null,null,null,null,{"$f":"AT21^2","v":0},0,0,0,0,0,0,0,0,0]
[null,null,null,null,null,null,null,null,null,null,null,null,null,null,null,null,null,null,null,null,null,null,null,null,null,null,null,null,null,null,null,null,null,null,null,null,null,null,null,null,null,null,null,null,null,{"$f":"AT22^2","v":0},0,0,0,0,0,0,0,0,0]
[null,null,null,null,null,null,null,null,null,null,null,null,null,null,null,null,null,null,null,null,null,null,null,null,null,null,null,null,null,null,null,null,null,null,null,null,null,null,null,null,null,null,null,null,null,{"$f":"AT23^2","v":0},0,0,0,0,0,0,0,0,0]
[null,null,null,null,null,null,null,null,null,null,null,null,null,null,null,null,null,null,null,null,null,null,null,null,null,null,null,null,null,null,null,null,null,null,null,null,null,null,null,null,null,null,null,null,null,{"$f":"AT24^2","v":0},0,0,0,0,0,0,0,0,0]
[null,null,null,null,null,null,null,null,null,null,null,null,null,null,null,null,null,null,null,null,null,null,null,null,null,null,null,null,null,null,null,null,null,null,null,null,null,null,null,null,null,null,null,null,null,{"$f":"AT25^2","v":0},0,0,0,0,0,0,0,0,0]
[null,null,null,null,null,null,null,null,null,null,null,null,null,null,null,null,null,null,null,null,null,null,null,null,null,null,null,null,null,null,null,null,null,null,null,null,null,null,null,null,null,null,null,null,null,{"$f":"AT26^2","v":0},0,0,0,0,0,0,0,0,0]
[null,null,null,null,null,null,null,null,null,null,null,null,null,null,null,null,null,null,null,null,null,null,null,null,null,null,null,null,null,null,null,null,null,null,null,null,null,null,null,null,null,null,null,null,null,{"$f":"AT27^2","v":0},0,0,0,0,0,0,0,0,0]
[null,null,null,null,null,null,null,null,null,null,null,null,null,null,null,null,null,null,null,null,null,null,null,null,null,null,null,null,null,null,null,null,null,null,null,null,null,null,null,null,null,null,null,null,null,{"$f":"AT28^2","v":0},0,0,0,0,0,0,0,0,0]
[null,null,null,null,null,null,null,null,null,null,null,null,null,null,null,null,null,null,null,null,null,null,null,null,null,null,null,null,null,null,null,null,null,null,null,null,null,null,null,null,null,null,null,null,null,{"$f":"AT29^2","v":0},0,0,0,0,0,0,0,0,0]
[null,null,null,null,null,null,null,null,null,null,null,null,null,null,null,null,null,null,null,null,null,null,null,null,null,null,null,null,null,null,null,null,null,null,null,null,null,null,null,null,null,null,null,null,null,{"$f":"AT30^2","v":0},0,0,0,0,0,0,0,0,0]
[null,null,null,null,null,null,null,null,null,null,null,null,null,null,null,null,null,null,null,null,null,null,null,null,null,null,null,null,null,null,null,null,null,null,null,null,null,null,null,null,null,null,null,null,null,{"$f":"AT31^2","v":0},0,0,0,0,0,0,0,0,0]
[null,null,null,null,null,null,null,null,null,null,null,null,null,null,null,null,null,null,null,null,null,null,null,null,null,null,null,null,null,null,null,null,null,null,null,null,null,null,null,null,null,null,null,null,null,{"$f":"AT32^2","v":0},0,0,0,0,0,0,0,0,0]
[null,null,null,null,null,null,null,null,null,null,null,null,null,null,null,null,null,null,null,null,null,null,null,null,null,null,null,null,null,null,null,null,null,null,null,null,null,null,null,null,null,null,null,null,null,{"$f":"AT33^2","v":0},0,0,0,0,0,0,0,0,0]
[null,null,null,null,null,null,null,null,null,null,null,null,null,null,null,null,null,null,null,null,null,null,null,null,null,null,null,null,null,null,null,null,null,null,null,null,null,null,null,null,null,null,null,null,null,{"$f":"AT34^2","v":0},0,0,0,0,0,0,0,0,0]
[null,null,null,null,null,null,null,null,null,null,null,null,null,null,null,null,null,null,null,null,null,null,null,null,null,null,null,null,null,null,null,null,null,null,null,null,null,null,null,null,null,null,null,null,null,{"$f":"AT35^2","v":0},0,0,0,0,0,0,0,0,0]
[null,null,null,null,null,null,null,null,null,null,null,null,null,null,null,null,null,null,null,null,null,null,null,null,null,null,null,null,null,null,null,null,null,null,null,null,null,null,null,null,null,null,null,null,null,{"$f":"AT36^2","v":0},0,0,0,0,0,0,0,0,0]

{"sheet":"ZZ-Matrix","index":4,"n_rows":24,"n_cols":21,"rows_kept":24,"cut":false,"hidden":true,"merged":[[1,3,1,20],[3,1,20,1],[1,1,2,2],[22,2,22,17],[23,2,23,11]]}
[]
[null,"ZZ-Matrix",null,"Zielsystem"]
[null,null,null,"Logistikkosten","Logistikleistung","Flächenproduktivität","Mitarbeiterproduktivität","Räumliche Veränderungsfähigkeit von Produktionskapazitäten","Technische und organisatorische  Veränderungsfähigkeit von Produktionskapazitäten","Räumliche Unterstützung der Kommunikation","Organisatorische Unterstützung der Kommunikation","Räumliche Unterstützung der Mitarbeiterorientierung","Ergonomische Arbeitsabläufe","Nachhaltigkeit des Fabrikgebäudes und der Infrastruktur","Räumliche Unterstützung der Nachhaltigkeit","Kompatibilität zur Aufbauorganisation","Kompatibilität zur Mitarbeiterqualifikation","Einheitliche Gestaltung der Arbeitsstation","Nachvollziehbarkeit der Verwendung einzelner Flächenbereiche","Nachvollziehbarkeit von Prozessen und Materialflüssen","Nachvollziehbarkeit von Verantwortlichkeiten"]
[null,"Zielsystem","Logistikkosten",null,"-"]
[null,null,"Logistikleistung","-"]
[null,null,"Flächenproduktivität","+",null,null,"-","-"]
[null,null,"Mitarbeiterproduktivität","+"]
[null,null,"Räumliche Veränderungsfähigkeit von Produktionskapazitäten",null,null,"-"]
[null,null,"Technische und organisatorische  Veränderungsfähigkeit von Produktionskapazitäten","-","+","-","-"]
[null,null,"Räumliche Unterstützung der Kommunikation",null,null,"-","+"]
[null,null,"Organisatorische Unterstützung der Kommunikation",null,null,null,"+"]
[null,null,"Räumliche Unterstützung der Mitarbeiterorientierung",null,null,null,"+"]
[null,null,"Ergonomische Arbeitsabläufe",null,null,null,"+"]
[null,null,"Nachhaltigkeit des Fabrikgebäudes und der Infrastruktur"]
[null,null,"Räumliche Unterstützung der Nachhaltigkeit",null,null,null,null,null,null,null,null,null,null,null,null,null,null,null,null,"-"]
[null,null,"Kompatibilität zur Aufbauorganisation",null,null,null,"+"]
[null,null,"Kompatibilität zur Mitarbeiterqualifikation",null,null,null,null,null,"+"]
[null,null,"Einheitliche Gestaltung der Arbeitsstation",null,"+",null,"+","+","+"]
[null,null,"Nachvollziehbarkeit der Verwendung einzelner Flächenbereiche",null,null,null,"+"]
[null,null,"Nachvollziehbarkeit von Prozessen und Materialflüssen",null,"+",null,"+"]
[null,null,"Nachvollziehbarkeit von Verantwortlichkeiten",null,null,null,"+"]
[]
[null,null,"+: Zielunterstützung (Die Erreichung von Ziel A kann die Erreichung von Ziel B unterstützen)\n"]
[null,null,"-: Zielkonkurrenz (Die Erreichung von Ziel A kann die Erreichung von Ziel B behindern)\n"]

{"sheet":"ZO-Matrix","index":5,"n_rows":22,"n_cols":21,"rows_kept":22,"cut":false,"hidden":true,"merged":[[1,3,1,20],[3,1,19,1],[1,1,2,2]]}
[]
[null,"ZO-Diagramm",null,"Zielsystem"]
[null,null,null,"Logistikkosten","Logistikleistung","Flächenproduktivität","Mitarbeiterproduktivität","Räumliche Veränderungsfähigkeit von Produktionskapazitäten","Technische und Organisatorische  Veränderungsfähigkeit von Produktionskapazitäten","Räumliche Unterstützung der Kommunikation","Organisatorische Unterstützung der Kommunikation","Räumliche Unterstützung der Mitarbeiterorientierung","Ergonomische Arbeitsabläufe","Nachhaltigkeit des Fabrikgebäudes und der Infrastruktur","Räumliche Unterstützung der Nachhaltigkeit","Kompatibilität zur Aufbauorganisation","Kompatibilität zur Mitarbeiterqualifikation","Einheitliche Gestaltung der Arbeitsstation","Nachvollziehbarkeit der Verwendung einzelner Flächenbereiche","Nachvollziehbarkeit von Prozessen und Materialflüssen","Nachvollziehbarkeit von Verantwortlichkeiten"]
[null,"Objektsystem","Arbeitsplatzgestaltung",null,null,null,null,null,null,null,null,1,null,1,null,null,null,1,null,null,1]
[null,null,"Ausbau",null,null,null,null,1,null,1,null,null,null,null,null,null,null,null,1]
[null,null,"Hülle",null,null,null,null,null,null,null,null,null,null,1]
[null,null,"Tragwerk",null,null,null,null,1]
[null,null,"Bauform",null,null,null,null,null,null,null,null,null,null,1]
[null,null,"Layout",null,null,1,null,1,null,1,null,1,null,null,1,1,null,1,1,1]
[null,null,"Generalbebauung",null,null,null,null,null,null,null,null,null,null,null,1]
[null,null,"Arbeitsorganisation",null,null,null,1,null,1,null,null,1,1]
[null,null,"Struktur",null,null,1,1,null,1,null,1,1,null,null,null,null,1,null,null,1]
[null,null,"Logistikkonzept",1,1,1,1,null,1]
[null,null,"Produktionskonzept",null,null,1,1,null,1,null,null,null,1]
[null,null,"Produktionsmittel",null,null,null,null,1,1,null,null,null,null,1]
[null,null,"Transportmittel",null,null,null,null,null,null,null,null,null,null,1]
[null,null,"Lagermittel",null,null,null,null,null,1,null,null,null,null,1]
[null,null,"Informationstechnik",null,null,null,null,null,null,null,null,null,null,1]
[null,null,"Technische Anlagen - Verteilung",null,null,null,null,1,1,null,null,null,null,1]
[null,null,"Technische Anlagen - Zentralen",null,null,null,null,null,null,null,null,null,null,1]
[]
[null,null,null,1,"Systemübergreifende Abhängigkeit zwischen Fabrikziel und Fabrikobjekt"]

{"sheet":"OP-Matrix","index":6,"n_rows":35,"n_cols":20,"rows_kept":35,"cut":false,"hidden":true,"merged":[[1,1,2,2],[1,3,1,19],[3,1,32,1]]}
[]
[null,"OP-Matrix",null,"Objektsystem"]
[null,null,null,"Arbeitsplatzgestaltung","Ausbau","Hülle","Tragwerk","Bauform","Layout","Generalbebauung","Arbeitsorganisation","Struktur","Logistikkonzept","Produktionskonzept","Produktionsmittel","Transportmittel","Lagermittel","Informationstechnik","Technische Anlagen - Verteilung","Technische Anlagen - Zentralen"]
[null,"Prozesssystem","Produkte"]
[null,null,"Standort",null,1,1,1,1,null,1]
[null,null,"Technik",1,null,null,null,null,null,null,null,null,null,null,1,1,1,1,1,1]
[null,null,"Produktionsabläufe",null,null,null,null,null,1,null,null,1,null,1]
[null,null,"Flüsse",null,null,null,null,null,1,null,null,1]
[null,null,"Produktionslogistische Abläufe",null,null,null,null,null,null,null,null,null,1]
[null,null,"Organisation",null,null,null,null,null,null,null,1]
[null,null,"Planungsgrundlage"]
[null,null,"Produktionskonzeptplanung",null,null,null,null,null,null,null,null,null,null,1]
[null,null,"Strukturplanung",null,null,null,null,null,null,null,null,1]
[null,null,"Logistikkonzeptplanung",null,null,null,null,null,null,null,null,null,1]
[null,null,"Produktionsmittel- dimensionierung"]
[null,null,"Personaldimensionierung"]
[null,null,"Flächendimensionierung",null,null,null,null,null,1]
[null,null,"Ideallayoutplanung",null,null,null,null,null,1]
[null,null,"Groblayoutplanung",null,null,null,null,null,1]
[null,null,"Kostenabschätzung"]
[null,null,"Feinlayoutplanung",1,null,null,null,null,1]
[null,null,"Prozessplanung",null,null,null,null,null,null,null,null,1]
[null,null,"Arbeitsorganisationsplanung",null,null,null,null,null,null,null,1]
[null,null,"Lastenhefterstellung"]
[null,null,"Kostenberechnung"]
[null,null,"Genehmigungsanträge"]
[null,null,"Leistungsbeschreibung"]
[null,null,"Angebotseinholung"]
[null,null,"Vergabe"]
[null,null,"Überwachung der Ausführungsplanung"]
[null,null,"Umsetzungsplanung"]
[null,null,"Koord., Überw. und Dok. der Realisierung"]
[null,null,"An- und Hochlaufbetreuung"]
[]
[null,null,null,1,"Systemübergreifende Abhängigkeit zwischen Fabrikobjekt und Planungsschritt"]

{"sheet":"PP-Matrix","index":7,"n_rows":35,"n_cols":33,"rows_kept":35,"cut":false,"hidden":true,"merged":[[1,1,2,2],[3,1,32,1],[1,3,1,32]]}
[]
[null,"PP-Matrix",null,"Prozesssystem"]
[null,null,null,"Produkte","Standort","Technik","Produktionsabläufe","Flüsse","Produktionslogistische Abläufe","Organisation","Planungsgrundlage","Produktionskonzeptplanung","Strukturplanung","Logistikkonzeptplanung","Produktionsmittel- dimensionierung","Personaldimensionierung","Flächendimensionierung","Ideallayoutplanung","Groblayoutplanung","Kostenabschätzung","Feinlayoutplanung","Prozessplanung","Arbeitsorganisationsplanung","Lastenhefterstellung","Kostenberechnung","Genehmigungsanträge","Leistungsbeschreibung","Angebotseinholung","Vergabe","Überwachung der Ausführungsplanung","Umsetzungsplanung","Koord., Überw. und Dok. der Realisierung","An- und Hochlaufbetreuung"]
[null,"Prozesssystem","Produkte",null,null,null,1,1,1,null,1]
[null,null,"Standort",null,null,null,null,null,null,null,1]
[null,null,"Technik",null,null,null,1,null,null,null,1]
[null,null,"Produktionsabläufe",null,null,null,null,1,null,null,1,1,1,null,null,null,1]
[null,null,"Flüsse",null,null,null,null,null,null,null,1]
[null,null,"Produktionslogistische Abläufe",null,null,null,null,null,null,null,1,null,null,1]
[null,null,"Organisation",null,null,null,null,null,null,null,1]
[null,null,"Planungsgrundlage",null,null,null,null,null,null,null,null,1,1,1,1,1,1,1,1,1,1,1,1]
[null,null,"Produktionskonzeptplanung",null,null,null,null,null,null,null,null,null,1,1,1]
[null,null,"Strukturplanung",null,null,null,null,null,null,null,null,null,null,1,1,null,null,null,null,null,null,1]
[null,null,"Logistikkonzeptplanung",null,null,null,null,null,null,null,null,null,null,null,1,null,null,null,null,1,null,1]
[null,null,"Produktionsmittel- dimensionierung",null,null,null,null,null,null,null,null,null,null,null,null,1,1,null,null,1,null,null,null,1]
[null,null,"Personaldimensionierung",null,null,null,null,null,null,null,null,null,null,null,null,null,1,null,null,1,null,null,1,null,null,null,null,null,null,null,1]
[null,null,"Flächendimensionierung",null,null,null,null,null,null,null,null,null,null,null,null,null,null,1,1,null,1]
[null,null,"Ideallayoutplanung",null,null,null,null,null,null,null,null,null,null,null,null,null,null,null,1]
[null,null,"Groblayoutplanung",null,null,null,null,null,null,null,null,null,null,null,null,null,null,null,null,1,1]
[null,null,"Kostenabschätzung"]
[null,null,"Feinlayoutplanung",null,null,null,null,null,null,null,null,null,null,null,null,null,null,null,null,null,null,1,null,null,1,1,null,null,null,null,1]
[null,null,"Prozessplanung",null,null,null,null,null,null,null,null,null,null,null,null,null,null,null,null,null,null,null,1,null,1,1,null,null,null,null,1]
[null,null,"Arbeitsorganisationsplanung",null,null,null,null,null,null,null,null,null,null,null,null,null,null,null,null,null,null,null,null,null,1]
[null,null,"Lastenhefterstellung",null,null,null,null,null,null,null,null,null,null,null,null,null,null,null,null,null,null,null,null,null,1,null,1]
[null,null,"Kostenberechnung"]
[null,null,"Genehmigungsanträge",null,null,null,null,null,null,null,null,null,null,null,null,null,null,null,null,null,null,null,null,null,null,null,null,null,1]
[null,null,"Leistungsbeschreibung",null,null,null,null,null,null,null,null,null,null,null,null,null,null,null,null,null,null,null,null,null,null,null,null,1]
[null,null,"Angebotseinholung",null,null,null,null,null,null,null,null,null,null,null,null,null,null,null,null,null,null,null,null,null,null,null,null,null,1]
[null,null,"Vergabe",null,null,null,null,null,null,null,null,null,null,null,null,null,null,null,null,null,null,null,null,null,null,null,null,null,null,1,null,1]
[null,null,"Überwachung der Ausführungsplanung",null,null,null,null,null,null,null,null,null,null,null,null,null,null,null,null,null,null,null,null,null,null,null,null,null,null,null,1]
[null,null,"Umsetzungsplanung",null,null,null,null,null,null,null,null,null,null,null,null,null,null,null,null,null,null,null,null,null,null,null,null,null,null,null,null,null,1]
[null,null,"Koord., Überw. und Dok. der Realisierung",null,null,null,null,null,null,null,null,null,null,null,null,null,null,null,null,null,null,null,null,null,null,null,null,null,null,null,null,null,1]
[null,null,"An- und Hochlaufbetreuung"]
[]
[null,null,null,1,"Abhängigkeit zwischen den Aus-/Eingangsinformationen zwischen zwei Prozessschritten"]

{"sheet":"PH-Matrix","index":8,"n_rows":15,"n_cols":33,"rows_kept":15,"cut":false,"hidden":true,"merged":[[1,3,1,32],[3,1,12,1],[1,1,2,2]]}
[]
[null,"PH-Matrix",null,"Prozesssystem"]
[null,null,null,"Produkte","Standort","Technik","Produktionsabläufe","Flüsse","Produktionslogistische Abläufe","Organisation","Planungsgrundlage","Produktionskonzeptplanung","Strukturplanung","Logistikkonzeptplanung","Produktionsmittel- dimensionierung","Personaldimensionierung","Flächendimensionierung","Ideallayoutplanung","Groblayoutplanung","Kostenabschätzung","Feinlayoutplanung","Prozessplanung","Arbeitsorganisationsplanung","Lastenhefterstellung","Kostenberechnung","Genehmigungsanträge","Leistungsbeschreibung","Angebotseinholung","Vergabe","Überwachung der Ausführungsplanung","Umsetzungsplanung","Koord., Überw. und Dok. der Realisierung","An- und Hochlaufbetreuung"]
[null,"Handlungssysteme","Architektur/Gebäudeplanung",null,1,null,null,null,null,null,1,null,null,null,null,null,1,1,1,1,1,null,null,null,1,1,1,1,1,1,1,1]
[null,null,"Behörden/Gutachter",null,null,null,null,null,null,null,null,null,null,null,null,null,null,null,null,null,1,1,null,null,null,1,null,null,null,null,null,1]
[null,null,"Fachplanung (bspw. IT, TGA)",null,null,1,null,null,null,null,1,null,null,null,null,null,null,1,1,1,1,1,null,1,1,1,1,1,1,1,1,1]
[null,null,"Finanzplanung",null,null,null,null,null,null,null,1,null,null,null,null,null,null,null,null,1,null,null,null,null,1,null,null,null,null,null,null,1]
[null,null,"Logistikplanung",1,null,null,null,null,1,null,1,null,null,1,1,null,null,null,null,1,null,1,null,null,1,null,null,null,null,null,1,null,1]
[null,null,"Personalplanung",null,null,null,null,null,null,1,1,null,null,null,null,1,null,null,null,1,null,null,1,null,null,null,null,null,null,null,1,1]
[null,null,"Produktentwicklung",1,null,null,null,null,null,null,1]
[null,null,"Prozessplanung",1,null,null,1,1,null,null,1,1,1,null,null,null,null,null,null,1,null,1,null,null,1,null,null,null,null,null,1,null,1]
[null,null,"Technologieentwicklung",null,null,1,null,null,null,null,1,1,null,null,1,null,null,null,null,1,null,null,null,1,1,null,null,null,null,null,null,1]
[null,null,"Unternehmensplanung",1,null,null,null,null,null,null,1,null,null,null,null,null,null,null,null,1,null,null,null,null,1,null,null,null,null,null,null,1,1]
[]
[null,null,null,1,"Abhängigkeit zwischen der Ein- oder Ausgangsinformation eines Planungsschritts zu einer angrenzenden Planungsdisziplin"]